Cogmind - Beta 14 @@@ ROGUE MODE // 2024.12.22 @ 14:19:20 Player: buwwet Result: Destroyed by G-47 Trooper with Particle Gun Performance ------------- Evolutions (0) 0 Regions Visited (2) 400 Robots Destroyed (11) 55 Value Destroyed (276) 276 Prototype IDs (0) 0 Alien Tech Used (0) 0 Bonus (0) 0 TOTAL SCORE: 731 Bonus ------- None Cogmind --------- Core Integrity 0/250 Matter 234/300 Energy 100/100 System Corruption 3% Temperature Cool (9) Movement Rolling (100) Location -10/Mines Parts ------- > --- POWER (1) -------- (None) > --- PROPULSION (2) --- Light Treads Compact Wheel > --- UTILITY (2) ------ Medium Storage Unit > --- WEAPON (2) ------- (None) > --- INVENTORY (10) --- Light Treads Light Treads Compact Wheel Hover Unit Improved Heat Sink Visual Processing Unit Sensor Array Weapon Shielding Peak State ------------ > --- POWER ------------ Light Ion Engine > --- PROPULSION ------- Light Treads Compact Wheel > --- UTILITY ---------- Medium Storage Unit Propulsion Shielding > --- WEAPON ----------- Assault Rifle Light Assault Rifle > --- INVENTORY -------- Light Ion Engine Light Treads Light Treads Compact Wheel Heat Sink Small Storage Unit Sensor Array Sensor Array Small Laser Light Assault Rifle [Rating: 8] Favorites ----------- Power Light Ion Engine Engine Light Ion Engine Propulsion Compact Wheel Treads Light Treads Wheel Compact Wheel Utility Medium Storage Unit Storage Medium Storage Unit Protection Propulsion Shielding Weapon Assault Rifle Energy Gun Small Laser Ballistic Gun Assault Rifle Launcher Grenade Launcher Build | -11 -10 -10 ------- Run | Yrd Mat Min Slots Evolved . | . . . Power . | . . . Propulsion . | . . . Utility . | . . . Weapon . | . . . Parts Attached 13 | 7 5 1 Power 2 | 1 1 . Engine 2 | 1 1 . Core . | . . . Reactor . | . . . Propulsion 2 | 2 . . Treads 1 | 1 . . Leg . | . . . Wheel 1 | 1 . . Hover . | . . . Flight . | . . . Utility 3 | 1 2 . Device . | . . . Storage 2 | 1 1 . Processor . | . . . Hackware . | . . . Protection 1 | . 1 . Artifact . | . . . Weapon 6 | 3 2 1 Energy Gun 1 | . 1 . Energy Cannon . | . . . Ballistic Gun 4 | 3 1 . Ballistic Cannon . | . . . Launcher 1 | . . 1 Special Weapon . | . . . Impact Weapon . | . . . Slashing Weapon . | . . . Piercing Weapon . | . . . Special Melee Weapon . | . . . Unidentified Prototypes . | . . . Parts Lost 6 | . 4 2 Power 2 | . 2 . Propulsion . | . . . Utility 1 | . . 1 Weapon 3 | . 2 1 Highest Loss Streak 5 | . 3 5 To Critical Strikes . | . . . Average Slot Usage (%) 93 | . 97 45 Engine 12 | . 13 . Treads 14 | . 14 14 Wheel 14 | . 14 14 Storage 14 | . 14 14 Protection 12 | . 13 . Energy Gun 6 | . 7 . Ballistic Gun 17 | . 19 . Peak Build Rating 8 | 6 8 6 Average Rating 7 | 4 7 4 On Entrance 3 | . 6 5 Naked Turns . | . . . Heaviest Build 17 | 11 17 14 Greatest Support 16 | 16 16 16 Greatest Overweight (x) 1 | . 1 . Average Overweight (x) . | . . . Largest Inventory Capacity 10 | 8 10 10 Average Capacity 9 | 7 9 10 Most Carried 10 | 4 10 8 Average Carried 8 | 2 8 8 Final Capacity 10 | 8 10 10 Final Carried 9 | 4 9 8 Class Distribution -------------------- 100% | Mutant Dominant Class ---------------- Mutant | -10/Materials Mutant | -10/Mines Resources | -11 -10 -10 ----------- Run | Yrd Mat Min Matter Collected 454 | 175 279 . Remotely . | . . . Salvage Created 406 | . 381 25 Parts 19 | . 19 . Haulers Intercepted 2 | . 2 . Recyclers Shooed . | . . . Parts Field Recycled . | . . . Retrieved Matter . | . . . Parts Self-Destructed . | . . . Prevented . | . . . Kills | -11 -10 -10 ------- Run | Yrd Mat Min Combat Hostiles Destroyed 7 | . 6 1 Guns 6 | . 6 . AOE 1 | . . 1 Classes Destroyed 5 | . 5 . Hauler 2 | . 2 . Operator 1 | . 1 . Watcher 1 | . 1 . Swarmer 1 | . 1 . Grunt 6 | . 5 1 Best Kill Streak 1 | . 1 1 Combat Bots Only 1 | . 1 1 Max Kills in Single Turn 1 | . 1 1 Gunslinging . | . . . Exploded 1 | . . 1 Melee . | . . . Uniques/NPCs Destroyed . | . . . Combat | -11 -10 -10 -------- Run | Yrd Mat Min Hostile Shots Fired 85 | . 68 17 Missed 26 | . 23 3 Damage Taken 884 | . 624 260 Core 254 | . 190 64 Absorbed by Shields . | . . . Redirected to Shielding 52 | . 29 23 Core Remaining (%) 100 | 100 . . Volleys Fired 63 | . 60 3 Largest 2 | . 2 1 Hottest 60 | . 60 30 Shots Fired 117 | . 114 3 Gun 114 | . 114 . Cannon . | . . . Launcher 3 | . . 3 Special . | . . . Kinetic 85 | . 85 . Thermal 29 | . 29 . Explosive 3 | . . 3 Electromagnetic . | . . . Robot Hit Streak 10 | . 10 2 Robot Miss Streak 5 | . 5 2 Penetration Max . | . . . Secondary Targets . | . . . Shots Hit Robots 76 | . 74 2 Core Hits 29 | . 27 2 Critical Kills . | . . . Critical Parts Destroyed . | . . . Critical Strikes . | . . . Melee Attacks . | . . . Impact . | . . . Slashing . | . . . Piercing . | . . . Sneak Attacks . | . . . Combat Hostiles . | . . . Follow-up Attacks . | . . . Damage Inflicted 979 | . 810 169 Guns 805 | . 805 . Cannons . | . . . Explosions 169 | . . 169 Melee . | . . . Ramming 5 | . 5 . Kinetic 587 | . 587 . Thermal 218 | . 218 . Explosive 169 | . . 169 Electromagnetic . | . . . Impact . | . . . Slashing . | . . . Piercing . | . . . Highest Corruption 3 | . 3 3 Average Corruption 1 | . 1 3 Corruption Purged . | . . . Corruption Blocked . | . . . Effects 2 | . 1 1 Message Errors 1 | . . 1 Parts Rejected 1 | . 1 . Overload Shots . | . . . Overflow Damage . | . . . Projectiles . | . . . Explosions . | . . . Melee . | . . . Knockbacks . | . . . Impact . | . . . Kinetic . | . . . Secondary . | . . . Self-Inflicted Damage 80 | . 2 78 Shots 2 | . . 2 Rammed 2 | . 2 . Targets Rammed 2 | . 2 . Kicked . | . . . Crushed . | . . . Highest Temperature 38 | . 38 5 Average Temperature 16 | . 16 5 Received Heat Transfer 450 | . 342 108 Siege Activations . | . . . Robots Corrupted . | . . . Combat Hostiles . | . . . Parts Fried . | . . . Impact Corruptions . | . . . Robots Melted . | . . . Combat Hostiles . | . . . Parts Melted 1 | . 1 . Heat Transferred 500 | . 500 . Parts Sabotaged . | . . . Parts Stolen . | . . . Parts Stripped . | . . . Power Chain Reactions . | . . . Alert | -11 -10 -10 ------- Run | Yrd Mat Min Peak Influence 150 | . 150 40 Initial 19 | . . 19 Average 58 | . 65 29 Maximum Alert Level . | . . . Low Security (%) 100 | 100 100 100 Level 1 . | . . . Level 2 . | . . . Level 3 . | . . . Level 4 . | . . . Level 5 . | . . . High Security . | . . . Max Security . | . . . Squads Dispatched 1 | . 1 . Investigation . | . . . Extermination . | . . . Reinforcement 1 | . 1 . Assault . | . . . Garrison . | . . . Intercept . | . . . Searches Triggered . | . . . Construction Impeded . | . . . Haulers Reinforced . | . . . Active Scanning Responses . | . . . Cargo Convoy Interrupts . | . . . Stealth | -11 -10 -10 --------- Run | Yrd Mat Min Distress Signals 3 | . 3 . Communications Jammed . | . . . Distress Signals . | . . . Times Spotted 23 | . 21 2 Peak Tracking Total 3 | . 3 2 Tactical Retreats 2 | . 2 . Traps | -11 -10 -10 ------- Run | Yrd Mat Min Traps Triggered 1 | . 1 . Indirectly . | . . . Trap Hack Attempts . | . . . Triggered . | . . . Disarmed . | . . . Reprogrammed . | . . . Reused . | . . . Traps Extracted . | . . . Installed . | . . . Triggered . | . . . Machines | -11 -10 -10 ---------- Run | Yrd Mat Min Machines Disabled . | . . . Max in Single Turn . | . . . Machines Repaired . | . . . Machines Dismantled . | . . . Machines Sabotaged . | . . . Overloaded Fab Kills . | . . . Hacking | -11 -10 -10 --------- Run | Yrd Mat Min Machines Accessed 2 | . 2 . Terminals 2 | . 2 . Fabricators . | . . . Repair Stations . | . . . Recycling Units . | . . . Scanalyzers . | . . . Garrison Access . | . . . Total Hacks 8 | . 8 . Successful 2 | . 2 . Failed 6 | . 6 . Catastrophic . | . . . Database Lockouts . | . . . Manual 5 | . 5 . Terminals 8 | . 8 . Fabricators . | . . . Repair Stations . | . . . Recycling Units . | . . . Scanalyzers . | . . . Garrison Access . | . . . Terminal Hacks 1 | . 1 . Terminal Index 1 | . 1 . Fabricator Hacks . | . . . Repair Station Hacks . | . . . Recycling Unit Hacks . | . . . Scanalyzer . | . . . Garrison Access Hacks . | . . . Unauthorized Hacks 1 | . 1 . Terminals 1 | . 1 . Botnet 1 | . 1 . Fabricators . | . . . Repair Stations . | . . . Recycling Units . | . . . Scanalyzers . | . . . Garrison Access . | . . . Data Cores Recovered . | . . . Used . | . . . Hacking Detections 2 | . 2 . Full Trace Events . | . . . Feedback Events . | . . . Feedback Blocked . | . . . Robot Schematics Acquired . | . . . Robots Built . | . . . Authchips . | . . . Time . | . . . Total Robot Build Rating . | . . . Part Schematics Acquired . | . . . Parts Built . | . . . Authchips . | . . . Time . | . . . Total Part Build Rating . | . . . Parts Repaired . | . . . Time . | . . . Parts Recycled . | . . . Recycled Matter . | . . . Retrieved Matter . | . . . Retrieved Components . | . . . Parts Scanalyzed . | . . . Part Schematics Acquired . | . . . Parts Damaged . | . . . Bothacking | -11 -10 -10 ------------ Run | Yrd Mat Min Used RIF Installer . | . . . Robots Hacked . | . . . Non-combat . | . . . Combat . | . . . Robot Hacks Applied . | . . . Relay Couplers Released . | . . . Fabnet Peak Effective % . | . . . Robots Rewired . | . . . Allies Hacked . | . . . Hacks Repelled . | . . . Allies | -11 -10 -10 -------- Run | Yrd Mat Min Total Allies . | . . . Largest Group . | . . . Highest-Rated Group . | . . . Highest-Rated Ally . | . . . Total Orders . | . . . Ally Attacks . | . . . Total Damage . | . . . Kills . | . . . Allies Corrupted . | . . . Allies Melted . | . . . Intel | -11 -10 -10 ------- Run | Yrd Mat Min Robot Analysis Total . | . . . Derelict Logs Recovered . | . . . Drone Launches . | . . . Drone Recoveries . | . . . Exploration | -11 -10 -10 ------------- Run | Yrd Mat Min Turns Passed 710 | 52 610 48 Spaces Moved 380 | 39 300 41 Core 3 | 3 . . Treads . | . . . Legs . | . . . Wheels 377 | 36 300 41 Hover . | . . . Flight . | . . . Fastest Speed 50 | 50 100 100 Average Speed 108 | 96 111 100 Slowest Speed 115 | 100 115 100 Overloaded Moves . | . . . Propulsion Burnouts . | . . . Robots Hopped . | . . . Cave-ins Triggered . | . . . Exploration Rate (%) 23 | 4 45 20 Regions Visited 2 Branch Regions 1 Pre-discovered Areas . | . . . Known Exits Taken . | . . . Unknown Exits Taken 2 | 1 1 . Scrap Searched . | . . . Spaces Dug . | . . . Terrain Destroyed 22 | . . 22 Melee . | . . . Projectile . | . . . AOE 22 | . . 22 Terrain Rammed . | . . . Walls Destroyed . | . . . Machines Disabled . | . . . Actions | -11 -10 -10 --------- Run | Yrd Mat Min Total 563 | 50 468 45 Wait 89 | 1 88 . Move 378 | 38 299 41 Hop . | . . . Pick Up 14 | 4 10 . Fast Attach 7 | 6 1 . Attach 3 | . 2 1 Detach . | . . . Swap 3 | 1 2 . Drop 4 | . 4 . Fire 63 | . 60 3 Melee . | . . . Ram 2 | . 2 . Kick . | . . . Crush . | . . . Escape Stasis . | . . . Rewire . | . . . Trap . | . . . Miscellaneous . | . . . Route ------- -11/Scrapyard -10/Materials (discovered 2 exits: [*Mat] / [*Min]) -10/Mines History --------- Turn | Location | Event 5 | -11/Scrapyard | Discovered new exit (range 14) 53 | -11/Scrapyard | Entered Materials 311 | -10/Materials | Build established: Mutant 490 | -10/Materials | Discovered new exit (range 6) 576 | -10/Materials | Discovered new exit (range 11) 625 | -10/Materials | Core integrity fell below 50% 663 | -10/Materials | Entered Mines 667 | -10/Mines | Core integrity fell below 20% 684 | -10/Mines | Met a Derelict bent on vengeance 706 | -10/Mines | Lost 5 parts (1p1u3w) 711 | -10/Mines | Destroyed by G-47 Trooper with Particle Gun Last Messages --------------- 00599_ Sml. Laser destroyed. 00620_ U-05 Engineer destroyed. 00621_ Critical hit (Burn: +37). 00625_ Assault Rifle destroyed. 00630_ M-13 Machinist repairs G-47 Trooper. 00632_ M-13 Machinist repairs Aluminum Leg. 00648_ Lgt. Ion Engine destroyed. 00649_ System corrupted: Lgt. Assault Rifle rejected. 00650_ Slammed into G-47 Trooper. 00651_ Destabilizing: System corrupted (+2). 00656_ M-13 Machinist repairs G-47 Trooper. 00658_ M-13 Machinist repairs Aluminum Leg. LOCATION=UNKNOWN GOAL=ESCAPE 00664_ N Map ----- +----------------------------------------------------+ | | | | | | | | | | | | | | | | | | | | | ## # ##????????????????????????????????????????? | | # ####????????????######???????????????????? | | # #??????????## ##??????????????????? | | # % """ ##?????????# #??????????????????? | | ?# """ T#????????? #??????????????????? | | ?# """ ##????????? #??????????????????? | | ?# #??????????? ##?????????????????? | | ?#### ######??????????? ####??????????????? | | ????# #???????????????? ##?????????????? | | ????# #???###??????????# ####??????????? | | ????# #?## ##????????## ???????????? | | ????# ### ######?### ??????????????? | | ???## ### #????????????????? | | ???# #?# ## #?????????????????? | | ??## """ ##?# ## #??????????????????? | | ??# """ ###??# ## @ ###??????????????????? | | ??# """ ##?#### ## ##????????????????????? | | ??## ##?# #?????????????????????? | | ???## ### kg #?????????????????????? | | ????## ## ##### #????????????????????? | | ????## ## #???### ?????????????????? | | ????# #?????## #???????????????? | | ????# ### #??????# ## #??????????????? | | ????# ###?# #??????# ##?? ?????????????? | | ????## ##???# #??????# #???? ?????????????? | | ?????####????# #??????## ##?????? ?????????????? | | ?????????????# #????????###?????????????????????? | | ?????????????# #????????????????????????????????? | | ?????????????# #????????????????????????????????? | | ?????????????# #????????????????????????????????? | | ?????????????# #????????????????????????????????? | | ?????????????# #????????????????????????????????? | | ????????????? #????????????????????????????????? | | ?????????????# #????????????????????????????????? | | ?????????????? ?????????????????????????????????? | | ?????????????? ?????????????????????????????????? | | ?????????????? ?????????????????????????????????? | | ?????????????????????????????????????????????????? | | ?????????????????????????????????????????????????? | | ?????????????????????????????????????????????????? | +----------------------------------------------------+ Best States ------------- Heat Dissipation 25 Energy Generation 10 Energy Capacity 125 Matter Stores 300 Matter Capacity 300 Sight Range 16 Terrain Scan Density 10 Propulsion Shielding 33 Evasion (%) 40 Item Schematics ----------------- None Robot Schematics ------------------ None Fabricated ------------ Nothing Alien Tech Used ----------------- None Achievements -------------- None Challenges ------------ None Game ------ Seed DecoyGravitonRecalibrator Manual? 0 Play Time 00:07:48 Cumulative 37.9 hours Start 2024.12.22 @ 14:11:55 End 2024.12.22 @ 14:19:20 Sessions 1 Manual Loads 0 Difficulty Rogue Special Mode None Game No. 37 Rogue 37 Adventurer 0 Explorer 0 Win Type - Total 0 Types 0/0/0/0/0/0/0/0/0 Lore% 22 Gallery% 31 Achievement% 29 Wizard Run 0 Options --------- Layout 1 ASCII 0 Keyboard 0 Movement Arrows Keybinds 0 Fullscreen 2 Font 24/Terminus Map View 50x35 Zoom Use 0% Tactical HUD 1 Map Filters NONE Filters NONE Steam 1 RUN: b45dda49-41a0-4d66-b9d1-7fb414e67e6d